Workbook

Sheet Табл 1
K1: Приложение
K2: к Порядку составления и утверждения отчета
K3: о результатах деятельности муниципального учреждения,
K4: подведомственного Администрации Прионежского муниципального района,
K5: и об использовании закрепленного за ним муниципального имущества,
K6: утвержденным постановлением Администрации
K7: Прионежского муниципального района
K8: от "3" июня 2022 года № 614
A10: Сведения об оказываемых услугах, выполняемых работах
A11: сверх установленного муниципального задания, а также выпускаемой продукции
A12: на 1 января 2025 г.
K14: КОДЫ
J15: Дата
J16: по Сводному реестру | K16: 86300402
J17: ИНН | K17: 1001112534
A18: Учреждение | B18: Муниципальное общеобразовательное учреждение "Средняя общеобразовательная школа № 44" | J18: КПП | K18: 102001001
A19: Орган, осуществляющий функции и полномочия учредителя | B19: Администрация Прионежского муниципального района | J19: глава по БК | K19: 015
A20: Публично-правовое образование | B20: Прионежский муниципальный район | J20: по ОКТМО | K20: 86636410
A21: Периодичность: годовая
A23: Раздел 1. Сведения об услугах, оказываемых сверх установленного муниципального задания
A24: Наименование оказываемых услуг | B24: Код по ОКВЭД | C24: Код строки | D24: Объем оказанных услуг | G24: Доход от оказания услуг, руб | H24: Цена (тариф) | I24: Справочно: реквизиты акта, которым установлена цена (тариф)
D25: единица измерения | F25: всего | I25: кем издан (ОМСУ, учреждение) | J25: дата | K25: номер
D26: наименование | E26: код по ОКЕИ
A27: 1 | B27: 2 | C27: 3 | D27: 4 | E27: 5 | F27: 6 | G27: 7 | H27: 8 | I27: 9 | J27: 10 | K27: 11
C28: 1000
C29: 2000
B31: Итого | C31: 9000 | D31: x | E31: x | F31: 0 | G31: 0 | H31: 0 | I31: x | J31: x | K31: x
A33: Раздел 2. Сведения о работах, выполняемых сверх установленного муниципального задания
A34: Наименование выполняемых работ | B34: Код по ОКВЭД | C34: Код строки | D34: Объем выполненных работ | G34: Доход от выполнения работ, руб | H34: Цена (тариф) | I34: Справочно: реквизиты акта, которым установлена цена (тариф)
D35: единица измерения | F35: всего | I35: кем издан (ОМСУ, учреждение) | J35: дата | K35: номер
D36: наименование | E36: код по ОКЕИ
A37: 1 | B37: 2 | C37: 3 | D37: 4 | E37: 5 | F37: 6 | G37: 7 | H37: 8 | I37: 9 | J37: 10 | K37: 11
C38: 1000
C39: 2000
B41: Итого | C41: 9000 | D41: x | E41: x | F41: 0 | G41: 0 | H41: 0 | I41: x | J41: x | K41: x
A43: Раздел 3. Сведения о производимой продукции
A44: Наименование производимой продукции | B44: Код по ОКВЭД | C44: Код строки | D44: Объем произведенной продукции | G44: Доход от реализации продукции, руб | H44: Цена (тариф) | I44: Справочно: реквизиты акта, которым установлена цена (тариф)
D45: единица измерения | F45: всего | I45: кем издан (ОМСУ, учреждение) | J45: дата | K45: номер
D46: наименование | E46: код по ОКЕИ
A47: 1 | B47: 2 | C47: 3 | D47: 4 | E47: 5 | F47: 6 | G47: 7 | H47: 8 | I47: 9 | J47: 10 | K47: 11
C48: 1000
C49: 2000
B51: Итого | C51: 9000 | D51: x | E51: x | F51: 0 | G51: 0 | H51: 0 | I51: x | J51: x | K51: x
A54: Руководитель
A55: (уполномоченное лицо) Учреждения | B55: Директор | I55: И.А.Сидорова
B56: (должность) | E56: (подпись) | I56: (расшифровка подписи)
A57: Исполнитель
B58: (должность) | E58: (фамилия, инициалы) | I58: (телефон)
A59: "__" __________ 20__ г.

Sheet Табл 2 (пустая)
A1: Сведения о доходах учреждения в виде прибыли, приходящейся на доли
A2: в уставных (складочных) капиталах хозяйственных товариществ и обществ, или дивидендов по акциям, принадлежащим учреждению <1>
M4: КОДЫ
A5: на 1 января 2025 г. | L5: Дата
L6: по Сводному реестру | M6: 86300402
L7: ИНН | M7: 1001112534
A8: Учреждение | B8: Муниципальное общеобразовательное учреждение "Средняя общеобразовательная школа № 44" | L8: КПП | M8: 102001001
A9: Орган, осуществляющий функции и полномочия учредителя | B9: Администрация Прионежского муниципального района | L9: глава по БК | M9: 015
A10: Публично-правовое образование | B10: Прионежский муниципальный район | L10: по ОКТМО | M10: 86636410
A11: Периодичность: годовая
A14: Организация (предприятие) | F14: Код строки | G14: Сумма вложений в уставный капитал | H14: Доля в уставном капитале, % | I14: Вид вложений <2> | J14: Задолженность перед учреждением по перечислению части прибыли (дивидендов) на начало года | K14: Доходы, подлежащие получению за отчетный период | M14: Задолженность перед учреждением по перечислению части прибыли (дивидендов) на конец отчетного периода
A15: наименование | B15: ИНН | C15: код по ОКОПФ | D15: дата создания | E15: основной вид деятельности | K15: начислено, руб | L15: поступило, руб
A16: 1 | B16: 2 | C16: 3 | D16: 4 | E16: 5 | F16: 6 | G16: 7 | H16: 8 | I16: 9 | J16: 10 | K16: 11 | L16: 12 | M16: 13
F17: 1000
F18: 2000
E20: Итого | F20: 9000 | G20: 0 | H20: x | I20: x | J20: 0 | K20: 0 | L20: 0 | M20: 0
A23: Руководитель | B23: Директор | J23: И.А.Сидорова
A24: (уполномоченное лицо) Учреждения
B25: (должность) | F25: (подпись) | J25: (расшифровка подписи)
A26: Исполнитель
B27: (должность) | F27: (фамилия, инициалы) | J27: (телефон)
A28: "__" __________ 20__ г.
A30: --------------------------------
A31: <1> Сведения формируются в случаях, если в соответствии с законодательством Российской Федерации установлена возможность создания хозяйственных товариществ и обществ.
A32: <2> Указывается вид вложений "1" - денежные средства, "2" - имущество, "3" - право пользования нематериальными активами.

Sheet Табл 3 (ЦБ)
A1: Сведения о просроченной кредиторской задолженности
Q3: КОДЫ
A4: на 1 января 2025 г. | P4: Дата
P5: по Сводному реестру | Q5: 86300402
P6: ИНН | Q6: 1001112534
A7: Учреждение | B7: Муниципальное общеобразовательное учреждение "Средняя общеобразовательная школа № 44" | P7: КПП | Q7: 102001001
A8: Орган, осуществляющий функции и полномочия учредителя | B8: Администрация Прионежского муниципального района | P8: глава по БК | Q8: 015
A9: Публично-правовое образование | B9: Прионежский муниципальный район | P9: по ОКТМО | Q9: 86636410
A10: Периодичность: годовая
A13: Наименование показателя | B13: Код строки | C13: Объем просроченной кредиторской задолженности на начало года | E13: Предельно допустимые значения просроченной кредиторской задолженности <3> | H13: Объем просроченной кредиторской задолженности на конец отчетного периода | N13: Изменение кредиторской задолженности <6> | P13: Причина образования | Q13: Меры, принимаемые по погашению просроченной кредиторской задолженности
C14: всего | D14: из нее по исполнительным листам | E14: значение | G14: срок, дней | H14: всего | I14: из нее по исполнительным листам | J14: в том числе по срокам | N14: сумма, руб | O14: в процентах
E15: в абсолютных величинах <4> | F15: в процентах <5> | J15: менее 30 дней просрочки | K15: от 30 до 90 дней просрочки | L15: от 90 до 180 дней просрочки | M15: более 180 дней просрочки
A16: 1 | B16: 2 | C16: 3 | D16: 4 | E16: 5 | F16: 6 | G16: 7 | H16: 8 | I16: 9 | J16: 10 | K16: 11 | L16: 12 | M16: 13 | N16: 14 | O16: 15 | P16: 16 | Q16: 17
A17: По выплате заработной платы | B17: 1000 | C17: 0.00 | D17: 0.00 | H17: 0.00 | I17: 0.00 | N17: 0.00 | O17: 0
A18: По выплате стипендий, пособий, пенсий | B18: 2000 | C18: 0.00 | D18: 0.00 | H18: 0.00 | I18: 0.00 | N18: 0.00 | O18: 0
A19: По перечислению в бюджет, всего | B19: 3000 | C19: 0.00 | D19: 0.00 | H19: 0.00 | I19: 0.00 | N19: 0.00 | O19: 0
A20: в том числе: | B20: 3100
A21: по перечислению удержанного налога на доходы физических лиц
A22: по оплате страховых взносов на обязательное социальное страхование | B22: 3200
A23: по оплате налогов, сборов, за исключением страховых взносов на обязательное социальное страхование | B23: 3300
A24: по возврату в бюджет средств субсидий (грантов в форме субсидий) | B24: 3400
A25: из них: | B25: 3410
A26: в связи с невыполнением муниципального задания
A27: в связи с недостижением результатов предоставления субсидий (грантов в форме субсидий) | B27: 3420
A28: в связи с невыполнением условий соглашений, в том числе по софинансированию расходов | B28: 3430
A29: По оплате товаров, работ, услуг, всего | B29: 4000 | C29: 0.00 | D29: 0.00 | H29: 0.00 | I29: 0.00 | N29: 0.00 | O29: 0.00
A30: из них: | B30: 4100
A31: по публичным договорам
A32: По оплате прочих расходов, всего | B32: 5000 | C32: 0.00 | D32: 0.00 | H32: 0.00 | I32: 0.00 | N32: 0.00 | O32: 0.00
A33: из них: | B33: 5100
A34: по выплатам, связанным с причинением вреда гражданам
A35: Итого | B35: 9000 | C35: 0.00 | D35: x | H35: x | I35: 0.00 | N35: 0.00 | O35: 0.00
A38: Руководитель | B38: Директор | J38: И.А.Сидорова
A39: (уполномоченное лицо) Учреждения
B40: (должность) | F40: (подпись) | J40: (расшифровка подписи)
A41: Исполнитель
B42: (должность) | F42: (фамилия, инициалы) | J42: (телефон)
A43: "__" __________ 20__ г.
A45: --------------------------------
A46: <3> Указываются предельно допустимые значения, установленные органом, осуществляющим функции и полномочия учредителя.
A47: <4> Заполняется в случае, если значения просроченной кредиторской задолженности установлены органом, осуществляющим функции и полномочия учредителя, в абсолютных значениях (рублях).
A48: <5> Заполняется в случае, если значения просроченной кредиторской задолженности установлены органом, осуществляющим функции и полномочия учредителя, в процентах от общей суммы кредиторской задолженности.
A49: <6> Указывается общая сумма увеличения или уменьшения кредиторской задолженности.

Sheet Табл 4 (ЦБ)
A1: Сведения о задолженности по ущербу, недостачам, хищениям денежных средств и материальных ценностей
A3: на 1 января 2025 г. | O3: КОДЫ
N4: Дата
N5: по Сводному реестру | O5: 86300402
A6: Учреждение | B6: Муниципальное общеобразовательное учреждение "Средняя общеобразовательная школа № 44" | N6: ИНН | O6: 1001112534
A7: Орган, осуществляющий функции и полномочия учредителя | B7: Администрация Прионежского муниципального района | N7: КПП | O7: 102001001
A8: Публично-правовое образование | B8: Прионежский муниципальный район | N8: глава по БК | O8: 015
A9: Периодичность: годовая | N9: по ОКТМО | O9: 86636410
A12: Наименование показателя | B12: Код строки | C12: Остаток задолженности по возмещению ущерба на начало года | E12: Выявлено недостач, хищений, нанесения ущерба | H12: Возмещено недостач, хищений, нанесения ущерба | L12: Списано | N12: Остаток задолженности по возмещению ущерба на конец отчетного периода
C13: всего | D13: из него на взыскании в службе судебных приставов | E13: всего | F13: в том числе: | H13: всего | I13: из них взыскано с виновных лиц | K13: страховыми организациями | L13: всего | M13: из них в связи с прекращением взыскания по исполнительным листам | N13: всего | O13: из него на взыскании в службе судебных приставов
F14: виновные лица установлены | G14: виновные лица не установлены | I14: всего | J14: из них по решению суда
A15: 1 | B15: 2 | C15: 3 | D15: 4 | E15: 5 | F15: 6 | G15: 7 | H15: 8 | I15: 9 | J15: 10 | K15: 11 | L15: 12 | M15: 13 | N15: 14 | O15: 15
A16: Недостача, хищение денежных средств, всего | B16: 0100 | C16: 0.00 | D16: 0.00 | E16: 0.00 | F16: 0.00 | G16: 0.00 | H16: 0.00 | I16: 0.00 | J16: 0.00 | K16: 0.00 | L16: 0.00 | M16: 0.00 | N16: 0.00 | O16: 0.00
A17: в том числе: | B17: 0110
A18: в связи с хищением (кражами)
A19: из них: | B19: 0111 | H19: x | J19: x | K19: x
A20: возбуждено уголовных дел (находится в следственных органах)
A21: в связи с выявлением при обработке наличных денег денежных знаков, имеющих признаки подделки | B21: 0120
A22: в связи с банкротством кредитной организации | B22: 0130
A23: Ущерб имуществу (за исключением денежных средств) | B23: 0200 | C23: 0.00 | D23: 0.00 | E23: 0.00 | F23: 0.00 | G23: 0.00 | H23: 0.00 | I23: 0.00 | J23: 0.00 | K23: 0.00 | L23: 0.00 | M23: 0.00 | N23: 0.00 | O23: 0.00
A24: в том числе: | B24: 0210
A25: в связи с недостачами, включая хищения (кражи)
A26: из них: | B26: 0211
A27: возбуждено уголовных дел (находится в следственных органах)
A28: в связи с нарушением правил хранения | B28: 0220
A29: в связи с нанесением ущерба техническому состоянию объекта | B29: 0230
A30: В связи с нарушением условий договоров (контрактов) | B30: 0300 | C30: 0.00 | D30: 0.00 | E30: 0.00 | F30: 0.00 | G30: 0.00 | H30: 0.00 | I30: 0.00 | J30: 0.00 | K30: 0.00 | L30: 0.00 | M30: 0.00 | N30: 0.00 | O30: 0.00
A31: в том числе: | B31: 0310
A32: в связи с нарушением сроков (начислено пени, штрафов, неустойки)
A33: в связи с невыполнением условий о возврате предоплаты (аванса) | B33: 0320
A34: Итого | B34: 9000 | C34: 0.00 | D34: 0.00 | E34: 0.00 | F34: 0.00 | G34: 0.00 | H34: 0.00 | I34: 0.00 | J34: 0.00 | K34: 0.00 | L34: 0.00 | M34: 0.00 | N34: 0.00 | O34: 0.00
A37: Руководитель | B37: Директор | J37: И.А.Сидорова
A38: (уполномоченное лицо) Учреждения
B39: (должность) | F39: (подпись) | J39: (расшифровка подписи)
A40: Исполнитель
B41: (должность) | F41: (фамилия, инициалы) | J41: (телефон)
A42: "__" __________ 20__ г.

Sheet Табл 5 (ЦБ)
A1: Сведения о численности сотрудников и оплате труда
Q3: КОДЫ
A4: на 1 января 2025 г. | P4: Дата
P5: по Сводному реестру | Q5: 86300402
P6: ИНН | Q6: 1001112534
A7: Учреждение | B7: Муниципальное общеобразовательное учреждение "Средняя общеобразовательная школа № 44" | P7: КПП | Q7: 102001001
A8: Орган, осуществляющий функции и полномочия учредителя | B8: Администрация Прионежского муниципального района | P8: глава по БК | Q8: 015
A9: Публично-правовое образование | B9: Прионежский муниципальный район | P9: по ОКТМО | Q9: 86636410
A10: Периодичность: годовая
A12: Раздел 1. Сведения о численности сотрудников
A13: Группы персонала (категория персонала) | B13: Код строки | C13: Штатная численность на начало года | G13: Средняя численность сотрудников за отчетный период | L13: По договорам гражданско-правового характера <9> | N13: Штатная численность на конец отчетного периода
C14: установлено штатным расписанием | E14: в том числе: | G14: всего <7> | H14: в том числе: | L14: в том числе: | N14: установлено штатным расписанием | P14: в том числе:
C15: всего | D15: из нее по основным видам деятельности | E15: замещено | F15: вакантных должностей | H15: по основному месту работы | J15: по внутреннему совместительству (по совмещению должностей) <8> | K15: по внешнему совместительству | L15: сотрудники учреждения <10> | M15: физические лица, не являющиеся сотрудниками учреждения <11> | N15: всего | O15: из нее по основным видам деятельности | P15: замещено | Q15: вакантных должностей
H16: всего | I16: из нее по основным видам деятельности
A18: 1 | B18: 2 | C18: 3 | D18: 4 | E18: 5 | F18: 6 | G18: 7 | H18: 8 | I18: 9 | J18: 10 | K18: 11 | L18: 12 | M18: 13 | N18: 14 | O18: 15 | P18: 16 | Q18: 17
A19: Основной персонал, всего <12> | B19: 1000 | C19: 25.77 | D19: 25.77 | E19: 26.17 | G19: =H19+K19 -> 13.3 | H19: =I19 -> 13.1 | I19: 13.1 | J19: 1 | K19: 0.2 | N19: 26.17 | O19: 26.17 | P19: 24.21 | Q19: =O19-P19 -> 1.96
A20: из них: <13> | B20: 1100
A22: Вспомогательный персонал, всего <14> | B22: 2000 | C22: 7.65 | D22: 7.65 | E22: 7.65 | G22: =H22+K22 -> 4.9 | H22: =I22 -> 3.9 | I22: 3.9 | J22: 0.5 | K22: 1 | N22: 7.65 | O22: 7.65 | P22: 6.85 | Q22: =O22-P22 -> 0.8
A23: из них: <13> | B23: 2100
A25: Административно-управленческий персонал, всего <15> | B25: 3000 | C25: 3.5 | D25: 3.5 | E25: 4 | F25: 0 | G25: =H25+K25 -> 3.4 | H25: 3.4 | I25: 3.4 | J25: 0 | N25: 4 | O25: 4 | P25: 4 | Q25: =O25-P25 -> 0
A26: из них: <13> | B26: 3100
A28: Итого | B28: 9000 | C28: =C19+C22+C25 -> 36.92 | D28: =D19+D22+D25 -> 36.92 | E28: 37.82 | F28: 0 | G28: 21.6 | H28: 20.4 | I28: 20.4 | J28: 1.50 | K28: 1.2 | L28: 0 | M28: 0 | N28: 37.82 | O28: 37.82 | P28: 35.06 | Q28: 2.76
A30: --------------------------------
A31: <7> При расчете показателя не учитывается численность сотрудников учреждения, работающих по внутреннему совместительству (по совмещению должностей).
A32: <8> Указывается численность сотрудников учреждения, работающих по внутреннему совместительству (по совмещению должностей). При расчете общей численности сотрудников учреждения показатель не учитывается.
A33: <9> Указывается численность физических лиц, привлекаемых к оказанию услуг, выполнению работ без заключения трудового договора (на основании договоров гражданско-правового характера). Детализация численности по группам персонала указывается в соответствии с предметом договора, в зависимости от характера работ, для выполнения которых привлекается сотрудник.
A34: <10> Указывается численность физических лиц, привлекаемых к оказанию услуг, выполнению работ без заключения трудового договора (на основании договоров гражданско-правового характера), являющихся сотрудниками учреждения.
A35: <11> Указывается численность физических лиц, привлекаемых к оказанию услуг, выполнению работ без заключения трудового договора (на основании договоров гражданско-правового характера), не являющихся сотрудниками учреждения.
A36: <12> Указывается численность работников учреждения, непосредственно оказывающих услуги (выполняющих работы), направленные на достижение определенных уставом учреждения целей деятельности этого учреждения.
A37: <13> Детализация показателей по группе (категории) персонала устанавливается порядком органа, осуществляющего функции и полномочия учредителя.
A38: <14> Указывается численность работников учреждения, создающих условия для оказания услуг (выполнения работ), направленных на достижение определенных уставом учреждения целей деятельности этого учреждения, включая обслуживание зданий и оборудования.
A39: <15> Указывается численность работников учреждения, занятых управлением (организацией) оказания услуг (выполнения работ), а также работников учреждения, выполняющих административные функции, необходимые для обеспечения деятельности учреждения.

Sheet Табл 5-1 (ЦБ)
A1: Раздел 2. Сведения об оплате труда
A2: Группы персонала | B2: Код строки | C2: Фонд начисленной оплаты труда сотрудников за отчетный период, руб | I2: Начислено по договорам гражданско-правового характера, руб <16> | K2: Аналитическое распределение оплаты труда сотрудников по источникам финансового обеспечения, руб <17>
C3: всего | D3: в том числе: | I3: в том числе: | K3: в том числе:
D4: по основному месту работы | G4: по внутреннему совместительству (совмещению должностей) | H4: по внешнему совместительству | I4: сотрудникам учреждения | J4: физическим лицам, не являющимися сотрудниками учреждения | K4: по основному месту работы
D5: всего | E5: в том числе на условиях: | K5: за счет средств субсидии на выполнение муниципального задания | L5: за счет средств субсидии на иные цели | M5: за счет средств гранта в форме субсидии | O5: ОМС <18> | P5: за счет средств от приносящей доход деятельности <19>
E6: полного рабочего времени | F6: неполного рабочего времени | M6: в том числе:
M7: из федерального бюджета | N7: из бюджетов субъектов Российской Федерации и местных бюджетов
A8: 1 | B8: 2 | C8: 3 | D8: 4 | E8: 5 | F8: 6 | G8: 7 | H8: 8 | I8: 9 | J8: 10 | K8: 11 | L8: 12 | M8: 13 | N8: 14 | O8: 15 | P8: 16
A9: Основной персонал, всего <20> | B9: 1000 | C9: =D9+H9+G9 -> 10,949,533.60 | D9: =E9+F9 -> 10,394,230.62 | E9: =10828059.18-G9-F9 -> 10,038,303.47 | F9: 355,927.15 | G9: 433,828.56 | H9: 121,474.42
A10: из них: <13> | B10: 1100
A12: Вспомогательный персонал, всего <21> | B12: 2000 | C12: =D12+H12+G12 -> 2,758,313.69 | D12: =E12+F12 -> 1,904,390.27 | E12: =2398163.01-G12-F12 -> 1,364,416.99 | F12: 539,973.28 | G12: 493,772.74 | H12: 360,150.68
A13: из них: <13> | B13: 2100
A15: Административно-управленческий персонал, всего <22> | B15: 3000 | C15: =D15+H15+G15 -> 3,858,626.96 | D15: =E15+F15 -> 3,858,626.96 | E15: 3,858,626.96 | F15: 0.00 | G15: 0.00
A16: из них: <13> | B16: 3100
A18: Итого | B18: 9000 | C18: =C9+C12+C15 -> 17,566,474.25 | D18: =D9+D12+D15 -> 16,157,247.85 | E18: 15,261,347.42 | F18: 895,900.43 | G18: 927,601.30 | H18: 481,625.10
A20: --------------------------------
A21: <16> Указывается сумма, начисленная по договорам гражданско-правового характера, заключенным с лицами, привлекаемыми для оказания услуг (выполнения работ). Детализация начисленного вознаграждения по группам персонала указывается в соответствии с предметом договора, в зависимости от характера работ, для выполнения которых привлекается сотрудник.
A22: <17> Показатели аналитического распределения оплаты труда сотрудников по источникам финансового обеспечения формируются в случае, если требование о детализации установлено органом, осуществляющим функции и полномочия учредителя.
A23: <18> Указывается сумма начисленной оплаты труда работникам учреждения, оказывающим услуги (выполняющим работы) в рамках программ обязательного медицинского страхования.
A24: <19> Указывается сумма начисленной оплаты труда работникам учреждения, оказывающим услуги (выполняющим работы) в рамках осуществления приносящей доход деятельности.
A25: <20> Указывается сумма начисленной оплаты труда работникам учреждения, непосредственно оказывающим услуги (выполняющим работы), направленные на достижение определенных уставом учреждения целей деятельности этого учреждения.
A26: <21> Указывается сумма начисленной оплаты труда работникам учреждения, создающим условия для оказания услуг (выполнения работ), направленных на достижение определенных уставом учреждения целей деятельности этого учреждения, включая обслуживание зданий и оборудования.
A27: <22> Указывается сумма начисленной оплаты труда работникам учреждения, занятым управлением (организацией) оказания услуг (выполнения работ), а также работникам учреждения, выполняющим административные функции, необходимые для обеспечения деятельности учреждения.

Sheet Табл 5-2 (ЦБ)
A1: Группы персонала | B1: Код строки | C1: Аналитическое распределение оплаты труда сотрудников по источникам финансового обеспечения, руб <17>
C2: в том числе:
C3: по внутреннему совместительству (совмещению должностей) | I3: по внешнему совместительству
C4: за счет средств субсидии на выполнение муниципального задания | D4: за счет средств субсидии на иные цели | E4: за счет средств гранта в форме субсидии | G4: ОМС | H4: за счет средств от приносящей доход деятельности | I4: за счет средств субсидии на выполнение муниципального задания | J4: за счет средств субсидии на иные цели | K4: за счет средств гранта в форме субсидии | M4: ОМС | N4: за счет средств от приносящей доход деятельности
E5: в том числе: | K5: в том числе:
E6: из федерального бюджета | F6: из бюджета субъекта Российской Федерации и местного бюджета | K6: из федерального бюджета | L6: из бюджета субъекта Российской Федерации и местного бюджета
A7: 1 | B7: 2 | C7: 17 | D7: 18 | E7: 19 | F7: 20 | G7: 21 | H7: 22 | I7: 23 | J7: 24 | K7: 25 | L7: 26 | M7: 27 | N7: 28
A8: Основной персонал, всего | B8: 1000
A9: из них: <13> | B9: 1100
A11: Вспомогательный персонал, всего | B11: 2000
A12: из них: <13> | B12: 2100
A14: Административно-управленческий персонал, всего | B14: 3000
A15: из них: <13> | B15: 3001
A17: Итого | B17: 9000
A19: Группы персонала | B19: Код строки | C19: Аналитическое распределение оплаты труда сотрудников по источникам финансового обеспечения, руб <17>
C20: в том числе:
C21: по договорам гражданско-правового характера с сотрудниками учреждения | I21: по договорам гражданско-правового характера с физическими лицами, не являющимися сотрудниками учреждения
C22: за счет средств субсидии на выполнение муниципального задания | D22: за счет средств субсидии на иные цели | E22: за счет средств гранта в форме субсидии, в том числе: | G22: ОМС | H22: за счет средств от приносящей доход деятельности | I22: за счет средств субсидии на выполнение муниципального задания | J22: за счет средств субсидии на иные цели | K22: за счет средств гранта в форме субсидии, в том числе: | M22: ОМС | N22: за счет средств от приносящей доход деятельности
E23: из федерального бюджета | F23: из бюджета субъекта Российской Федерации и местного бюджета | K23: из федерального бюджета | L23: из бюджета субъекта Российской Федерации и местного бюджета
A24: 1 | B24: 2 | C24: 29 | D24: 30 | E24: 31 | F24: 32 | G24: 33 | H24: 34 | I24: 35 | J24: 36 | K24: 37 | L24: 38 | M24: 39 | N24: 40
A25: Основной персонал, всего | B25: 1000
A26: из них: <13> | B26: 1100
A28: Вспомогательный персонал, всего | B28: 2000
A29: из них: <13> | B29: 2100
A31: Административно-управленческий персонал, всего | B31: 3000
A32: из них: <13> | B32: 3001
A34: Итого | B34: 9000
A37: Руководитель | B37: Директор | K37: И.А.Сидорова
A38: (уполномоченное лицо) Учреждения
B39: (должность) | G39: (подпись) | K39: (расшифровка подписи)
A40: Исполнитель
B41: (должность) | G41: (фамилия, инициалы) | K41: (телефон)
A42: "__" __________ 20__ г.

Sheet Табл 6 (ЦБ)
A1: Сведения о счетах учреждения, открытых в кредитных организациях
G3: КОДЫ
A4: на 1 января 2025 г. | F4: Дата
F5: по Сводному реестру | G5: 86300402
F6: ИНН | G6: 1001112534
A7: Учреждение | B7: Муниципальное общеобразовательное учреждение "Средняя общеобразовательная школа № 44" | F7: КПП | G7: 102001001
A8: Орган, осуществляющий функции и полномочия учредителя | B8: Администрация Прионежского муниципального района | F8: глава по БК | G8: 015
A9: Публично-правовое образование | B9: Прионежский муниципальный район | F9: по ОКТМО | G9: 86636410
A10: Периодичность: годовая
A13: Номер счета в кредитной организации | B13: Вид счета <23> | C13: Реквизиты акта, в соответствии с которым открыт счет | F13: Остаток средств на счете на начало года <24> | G13: Остаток средств на счете на конец отчетного периода <24>
C14: вид акта | D14: дата | E14: номер
A15: 1 | B15: 2 | C15: 3 | D15: 4 | E15: 5 | F15: 6 | G15: 7
A16: Счета в кредитных организациях в валюте Российской Федерации | B16: x | C16: x | D16: x | E16: x | F16: x | G16: x
A20: Всего | F20: 0.00 | G20: 0.00
A21: Счета в кредитных организациях в иностранной валюте | B21: x | C21: x | D21: x | E21: x | F21: x | G21: x
A25: Всего | F25: 0.00 | G25: 0.00
A26: Итого | B26: x | C26: x | D26: x | E26: x | F26: 0.00 | G26: 0.00
A29: Руководитель | B29: Директор | F29: И.А.Сидорова
A30: (уполномоченное лицо) Учреждения
B31: (должность) | D31: (подпись) | F31: (расшифровка подписи)
A32: Исполнитель
B33: (должность) | D33: (фамилия, инициалы) | F33: (телефон)
A34: "__" __________ 20__ г.
A36: --------------------------------
A37: <23> Указывается вид банковского счета, открытого в кредитной организации (например, номинальный счет, счет эскроу, публичный депозитный счет).
A38: <24> Показатели счетов в иностранной валюте указываются в рублевом эквиваленте.

Sheet Табл 7 (учрежд)
A1: Сведения о недвижимом имуществе, за исключением земельных участков, закрепленном на праве оперативного управления
P3: КОДЫ
A4: на 1 января 2025 г. | O4: Дата
O5: по Сводному реестру | P5: 86300402
O6: ИНН | P6: 1001112534
A7: Учреждение | B7: Муниципальное общеобразовательное учреждение "Средняя общеобразовательная школа № 44" | O7: КПП | P7: 102001001
A8: Орган, осуществляющий функции и полномочия учредителя | B8: Администрация Прионежского муниципального района | O8: глава по БК | P8: 015
A9: Публично-правовое образование | B9: Прионежский муниципальный район | O9: по ОКТМО | P9: 86636410
A10: Периодичность: годовая
A13: Наименование объекта | B13: Адрес | C13: Кадастровый номер | D13: Код по ОКТМО | E13: Год постройки | F13: Единица измерения | H13: Код строки | I13: Используется учреждением | M13: Передано во временное пользование сторонним организациям (индивидуальным предпринимателям)
F14: наименование | G14: код по ОКЕИ | I14: всего | J14: в том числе: | M14: всего | N14: в том числе:
J15: для осуществления основной деятельности | L15: для иных целей | N15: на основании договоров аренды | O15: на основании договоров безвозмездного пользования | P15: без оформления права пользования (с почасовой оплатой)
J16: в рамках муниципального задания | K16: за плату сверх муниципального задания
A17: 1 | B17: 2 | C17: 3 | D17: 4 | E17: 5 | F17: 6 | G17: 7 | H17: 8 | I17: 9 | J17: 10 | K17: 11 | L17: 12 | M17: 13 | N17: 14 | O17: 15 | P17: 16
A18: Площадные объекты <25>, всего | B18: x | C18: x | D18: x | E18: x | F18: x | G18: x | H18: 1000 | I18: =I19 -> 1961.8 | J18: =J19 -> 0.0 | K18: 0.0 | L18: 0.0 | M18: 0.0 | N18: 0.0 | O18: 0.0 | P18: 0.0
A19: в том числе: | H19: 1001 | I19: =I20 -> 1961.8 | J19: =J21 -> 0.0 | K19: 0.0 | L19: 0.0 | M19: =M20 -> 0.0 | N19: 0.0 | O19: 0.0 | P19: 0.0
A20: Здание школы | B20: РК, Прионежский район, п.Чална-1 | C20: 10:20:0000000:3662 | D20: 86636410 | F20: квадратный метр | G20: 055 | I20: =J20 -> 1961.8 | J20: 1961.8 | K20: 0.0 | L20: 0.0 | M20: =N20+O20+P20 -> 0.0 | N20: 0.0 | O20: 0.0 | P20: 0.0
A22: Линейные объекты <26>, всего | B22: x | C22: x | D22: x | E22: x | F22: x | H22: 2000 | I22: 0.0 | J22: 0.0 | K22: 0.0 | L22: 0.0 | M22: 0.0 | N22: 0.0 | O22: 0.0 | P22: 0.0
A23: в том числе: | H23: 2001
A25: Резервуары, емкости, иные аналогичные объекты, всего | B25: x | C25: x | D25: x | E25: x | F25: x | H25: 3000 | I25: 0.0 | J25: 0.0 | K25: 0.0 | L25: 0.0 | M25: 0.0 | N25: 0.0 | O25: 0.0 | P25: 0.0
A26: в том числе: | H26: 3001
A28: Скважины, иные аналогичные объекты, всего | B28: x | C28: x | D28: x | E28: x | F28: x | G28: x | H28: 4000 | I28: 0.0 | J28: 0.0 | K28: 0.0 | L28: 0.0 | M28: 0.0 | N28: 0.0 | O28: 0.0 | P28: 0.0
A29: в том числе: | H29: 4001
A31: Иные объекты, включая точечные, всего | B31: x | C31: x | D31: x | E31: x | F31: x | G31: x | H31: 5000 | I31: 0.0 | J31: 0.0 | K31: 0.0 | L31: 0.0 | M31: 0.0 | N31: 0.0 | O31: 0.0 | P31: 0.0
A32: в том числе: | H32: 5001
H34: 9000 | I34: =I18+I22+I25+I28+I31 -> 1961.8 | J34: 0.0 | K34: 0.0 | L34: 0.0 | M34: 0.0 | N34: 0.0 | O34: 0.0 | P34: 0.0
A36: --------------------------------
A37: <25> Указываются здания, строения, сооружения и иные аналогичные объекты.
A38: <26> Указываются линии электропередачи, линии связи (в том числе линейно-кабельные сооружения), трубопроводы, автомобильные дороги, железнодорожные линии и другие подобные сооружения.

Sheet Табл 7-1 (ЦБ)
A1: Наименование объекта | B1: Код строки | C1: Не используется | G1: Фактические расходы на содержание объекта недвижимого имущества (руб в год)
C2: всего | D2: из них: | G2: всего | H2: из них:
D3: проводится капитальный ремонт и/или реконструкция | E3: в связи с аварийным состоянием | H3: коммунальные услуги | K3: услуги по содержанию имущества | N3: налог на имущество
E4: требуется ремонт | F4: ожидает списания | H4: всего | I4: из них: | K4: всего | L4: из них: | N4: всего | O4: из них:
I5: возмещается пользователями имущества | J5: по неиспользуемому имуществу | L5: возмещается пользователями имущества | M5: по неиспользуемому имуществу | O5: возмещается пользователями имущества | P5: по неиспользуемому имуществу
A6: 1 | B6: 8 | C6: 17 | D6: 18 | E6: 19 | F6: 20 | G6: 21 | H6: 22 | I6: 23 | J6: 24 | K6: 25 | L6: 26 | M6: 27 | N6: 28 | O6: 29 | P6: 30
A7: Площадные объекты <25>, всего | B7: 1000 | C7: =C8 -> 0 | D7: =D8 -> 0 | E7: 0 | F7: 0 | G7: =H7+K7+N7 -> 3,160,861.47 | H7: 1,950,081.63 | I7: 0.00 | J7: 0.00 | K7: 1,201,153.84 | L7: 0.00 | M7: 0.00 | N7: 9,626.00 | O7: 0.00 | P7: 0.00
A8: в том числе: | B8: 1001 | C8: =C10 -> 0 | D8: 0 | E8: 0 | F8: 0 | G8: 3,160,861.47 | H8: =H9 -> 1,950,081.63 | I8: 0.00 | J8: 0.00 | K8: 1,201,153.84 | L8: 0.00 | M8: 0.00 | N8: 9,626.00 | O8: 0.00 | P8: 0.00
A9: Здание школы | C9: 0 | D9: 0 | G9: =H9+K9+N9 -> 3,160,861.47 | H9: 1,950,081.63 | I9: 0.00 | J9: 0.00 | K9: 1,201,153.84 | L9: 0.00 | M9: 0.00 | N9: 9,626.00 | O9: 0.00 | P9: 0.00
A11: Линейные объекты <26>, всего | B11: 2000 | C11: 0 | D11: 0 | E11: 0 | F11: 0 | G11: 0.00 | H11: 0.00 | I11: 0.00 | J11: 0.00 | K11: 0.00 | L11: 0.00 | M11: 0.00 | N11: 0.00 | O11: 0.00 | P11: 0.00
A12: в том числе: | B12: 2001
A14: Резервуары, емкости, иные аналогичные объекты, всего | B14: 3000 | C14: 0 | D14: 0 | E14: 0 | F14: 0 | G14: 0.00 | H14: 0.00 | I14: 0.00 | J14: 0.00 | K14: 0.00 | L14: 0.00 | M14: 0.00 | N14: 0.00 | O14: 0.00 | P14: 0.00
A15: в том числе: | B15: 3001
A17: Скважины, иные аналогичные объекты, всего | B17: 4000 | C17: 0 | D17: 0 | E17: 0 | F17: 0 | G17: 0.00 | H17: 0.00 | I17: 0.00 | J17: 0.00 | K17: 0.00 | L17: 0.00 | M17: 0.00 | N17: 0.00 | O17: 0.00 | P17: 0.00
A18: в том числе: | B18: 4001
A20: Иные объекты, включая точечные, всего | B20: 5000 | C20: 0 | D20: 0 | E20: 0 | F20: 0 | G20: 0.00 | H20: 0.00 | I20: 0.00 | J20: 0.00 | K20: 0.00 | L20: 0.00 | M20: 0.00 | N20: 0.00 | O20: 0.00 | P20: 0.00
A21: в том числе: | B21: 5001
A23: Итого | B23: 9000 | C23: =C7+C11+C14+C17+C20 -> 0 | D23: 0 | E23: 0 | F23: 0 | G23: 3,160,861.47 | H23: 1,950,081.63 | I23: 0.00 | J23: 0.00 | K23: 1,201,153.84 | L23: 0.00 | M23: 0.00 | N23: 9,626.00 | O23: 0.00 | P23: 0.00
A26: Руководитель | B26: Директор | I26: И.А.Сидорова
A27: (уполномоченное лицо) Учреждения
B28: (должность) | E28: (подпись) | I28: (расшифровка подписи)
A29: Исполнитель
B30: (должность) | E30: (фамилия, инициалы) | I30: (телефон)
A31: "__" __________ 20__ г.

Sheet Табл 8 (ЦБ)
A1: Сведения о земельных участках, предоставленных на праве постоянного (бессрочного) пользования
V3: КОДЫ
A4: на 1 января 2025 г. | U4: Дата
U5: по Сводному реестру | V5: 86300402
U6: ИНН | V6: 1001112534
A7: Учреждение | B7: Муниципальное общеобразовательное учреждение "Средняя общеобразовательная школа № 44" | U7: КПП | V7: 102001001
A8: Орган, осуществляющий функции и полномочия учредителя | B8: Администрация Прионежского муниципального района | U8: глава по БК | V8: 015
A9: Публично-правовое образование | B9: Прионежский муниципальный район | U9: по ОКТМО | V9: 86636410
A10: Периодичность: годовая
A13: Наименование показателя | B13: Адрес | C13: Код по ОКТМО | D13: Кадастровый номер | E13: Единица измерения | G13: Код строки | H13: Всего | I13: Используется учреждением | M13: Справочно: используется по соглашениям об установлении сервитута | N13: Не используется учреждением | S13: Фактические расходы на содержание земельного участка
S14: (руб в год)
E15: наименование | F15: код по ОКЕИ | I15: всего | J15: в том числе: | N15: всего | O15: в том числе: | S15: всего | T15: в том числе:
J16: для осуществления основной деятельности | L16: для иных целей | O16: передано во временное пользование сторонним организациям | R16: по иным причинам | T16: эксплуатационные расходы | V16: налог на землю
J17: в рамках муниципального задания | K17: за плату сверх муниципального задания | O17: на основании договоров аренды | P17: на основании договоров безвозмездного пользования | Q17: без оформления права пользования | T17: всего | U17: из них возмещается пользователями имущества
A18: 1 | B18: 2 | C18: 3 | D18: 4 | E18: 5 | F18: 6 | G18: 7 | H18: 8 | I18: 9 | J18: 10 | K18: 11 | L18: 12 | M18: 13 | N18: 14 | O18: 15 | P18: 16 | Q18: 17 | R18: 18 | S18: 19 | T18: 20 | U18: 21 | V18: 22
A19: Земельный участок | B19: РК, Прионежский район, п.Чална-1, з/у 29 | C19: 86636410 | D19: 10:20:0000000:10229 | E19: квадратный метр | F19: 055 | H19: 11 992 кв.м | I19: 11 992 кв.м | J19: 11 992 кв.м | K19: 0 | L19: 0 | M19: 0 | N19: 0 | O19: 0 | P19: 0 | Q19: 0 | R19: 0 | S19: =T19+V19 -> 27,461.00 | T19: 0.00 | U19: 0.00 | V19: 27,461.00
F22: Итого | G22: х | H22: 11 992 кв.м | I22: 11 992 кв.м | J22: 11 992 кв.м | K22: х | L22: х | M22: х | N22: х | O22: х | P22: х | Q22: х | R22: х | S22: =S19 -> 27,461.00 | T22: =T19 -> 0.00 | U22: =U19 -> 0.00 | V22: 27,461.00
A25: Руководитель | B25: Директор | I25: И.А.Сидорова
A26: (уполномоченное лицо) Учреждения
B27: (должность) | E27: (подпись) | I27: (расшифровка подписи)
A28: Исполнитель
B29: (должность) | E29: (фамилия, инициалы) | I29: (телефон)
A30: "__" __________ 20__ г.

Sheet Табл 9 (учр+цб)
A1: Сведения о недвижимом имуществе, используемом по договору аренды
Q3: КОДЫ
A4: на 1 января 2025 г. | P4: Дата
P5: по Сводному реестру | Q5: 86300402
P6: ИНН | Q6: 1001112534
A7: Учреждение | B7: Муниципальное общеобразовательное учреждение "Средняя общеобразовательная школа № 44" | P7: КПП | Q7: 102001001
A8: Орган, осуществляющий функции и полномочия учредителя | B8: Администрация Прионежского муниципального района | P8: глава по БК | Q8: 015
A9: Публично-правовое образование | B9: Прионежский муниципальный район | P9: по ОКТМО | Q9: 86636410
A10: Периодичность: годовая
A12: Раздел 1. Сведения о недвижимом имуществе, используемом на праве аренды с помесячной оплатой
A13: Наименование объекта | B13: Адрес | C13: Единица измерения | E13: Код строки | F13: Количество арендуемого имущества | G13: Арендодатель (ссудодатель) | J13: Срок пользования | L13: Арендная плата | N13: Фактические расходы на содержание арендованного имущества (руб/год) | O13: Направление использования арендованного имущества | Q13: Обоснование заключения договора аренды
C14: наименование | D14: код по ОКЕИ | G14: наименование | H14: ИНН | I14: код по КИСЭ | J14: начала | K14: окончания | L14: за единицу меры (руб/мес) | M14: за объект (руб/год) | O14: для осуществления основной деятельности <27> | P14: для осуществления иной деятельности <28>
A15: 1 | B15: 2 | C15: 3 | D15: 4 | E15: 5 | F15: 6 | G15: 7 | H15: 8 | I15: 9 | J15: 10 | K15: 11 | L15: 12 | M15: 13 | N15: 14 | O15: 15 | P15: 16 | Q15: 17
A16: Площадные объекты <25>, всего | B16: x | C16: x | D16: x | E16: 1000 | F16: 0 | G16: х | H16: х | I16: х | J16: х | K16: х | L16: х | M16: х | N16: 0 | O16: х | P16: х | Q16: х
A17: в том числе: | E17: 1001
A19: Линейные объекты <26>, всего | B19: x | C19: x | D19: x | E19: 2000 | F19: 0 | G19: х | H19: х | I19: х | J19: х | K19: х | L19: х | M19: х | N19: 0 | O19: х | P19: х | Q19: х
A20: в том числе: | E20: 2001
A22: Резервуары, емкости, иные аналогичные объекты, всего | B22: x | C22: x | D22: x | E22: 3000 | F22: 0 | G22: х | H22: х | I22: х | J22: х | K22: х | L22: х | M22: х | N22: 0 | O22: х | P22: х | Q22: х
A23: в том числе: | E23: 3001
A25: Скважины, иные аналогичные объекты, всего | B25: x | C25: x | D25: x | E25: 4000 | F25: 0 | G25: х | H25: х | I25: х | J25: х | K25: х | L25: х | M25: х | N25: 0 | O25: х | P25: х | Q25: х
A26: в том числе: | E26: 4001
A28: Иные объекты, включая точечные, всего | B28: x | C28: x | D28: x | E28: 5000
A29: в том числе: | E29: 5001 | F29: 0 | G29: х | H29: х | I29: х | J29: х | K29: х | L29: х | M29: х | N29: 0 | O29: х | P29: х | Q29: х
D31: Итого | E31: 9000 | F31: 0 | G31: х | H31: х | I31: х | J31: х | K31: х | L31: х | M31: 0.00 | N31: 0.00 | O31: х | P31: х | Q31: х

Sheet Табл 9-1
A1: Раздел 2. Сведения о недвижимом имуществе, используемом на праве аренды с почасовой оплатой
A2: Наименование объекта | B2: Адрес | C2: Единица измерения | E2: Код строки | F2: Количество арендуемого имущества | G2: Арендодатель (ссудодатель) | J2: Длительность использования (час) | K2: Арендная плата | N2: Фактические расходы на содержание объекта недвижимого имущества (руб/год) | O2: Направление использования объекта недвижимого имущества | Q2: Обоснование заключения договора аренды
C3: наименование | D3: код по ОКЕИ | G3: наименование | H3: ИНН | I3: код по КИСЭ | K3: за единицу меры (руб/час) | L3: за объект (руб/час) | M3: всего за год (руб) | O3: для осуществления основной деятельности <27> | P3: для осуществления иной деятельности <28>
A4: 1 | B4: 2 | C4: 4 | D4: 5 | E4: 6 | F4: 7 | G4: 8 | H4: 9 | I4: 10 | J4: 11 | K4: 12 | L4: 13 | M4: 14 | N4: 15 | O4: 16 | P4: 17 | Q4: 18
A5: Площадные объекты <25>, всего | B5: x | C5: x | D5: x | E5: 1000 | F5: 0 | G5: х | H5: х | I5: х | J5: х | K5: х | L5: х | M5: х | N5: 0 | O5: х | P5: х | Q5: х
A6: в том числе: | E6: 1001
A8: Линейные объекты <26>, всего | B8: x | C8: x | D8: x | E8: 2000 | F8: 0 | G8: х | H8: х | I8: х | J8: х | K8: х | L8: х | M8: х | N8: 0 | O8: х | P8: х | Q8: х
A9: в том числе: | E9: 2001
A11: Резервуары, емкости, иные аналогичные объекты, всего | B11: x | C11: x | D11: x | E11: 3000 | F11: 0 | G11: х | H11: х | I11: х | J11: х | K11: х | L11: х | M11: х | N11: 0 | O11: х | P11: х | Q11: х
A12: в том числе: | E12: 3001
A14: Скважины, иные аналогичные объекты, всего | B14: x | C14: x | D14: x | E14: 4000 | F14: 0 | G14: х | H14: х | I14: х | J14: х | K14: х | L14: х | M14: х | N14: 0 | O14: х | P14: х | Q14: х
A15: в том числе: | E15: 4001
A17: Иные объекты, включая точечные, всего | B17: x | C17: x | D17: x | E17: 5000 | F17: 0 | G17: х | H17: х | I17: х | J17: х | K17: х | L17: х | M17: х | N17: 0 | O17: х | P17: х | Q17: х
A18: в том числе: | E18: 5001
D20: Итого | E20: 9000 | F20: х | G20: х | H20: х | I20: х | J20: х | K20: х | L20: х | M20: х | N20: х | O20: х | P20: х | Q20: х
A23: Руководитель | B23: Директор
A24: (уполномоченное лицо) Учреждения | I24: И.А.Сидорова
B25: (должность) | E25: (подпись) | I25: (расшифровка подписи)
A26: Исполнитель
B27: (должность) | E27: (фамилия, инициалы) | I27: (телефон)
A28: "__" __________ 20__ г.
A30: --------------------------------
A31: <27> Указывается направление использования объекта недвижимого имущества "1" - для осуществления основной деятельности в рамках муниципального задания, "2" - для осуществления основной деятельности за плату сверх муниципального задания.
A32: <28> Указывается направление использования объекта недвижимого имущества "3" - проведение концертно-зрелищных мероприятий и иных культурно-массовых мероприятий, "4" - проведение спортивных мероприятий, "5" - проведение конференций, семинаров, выставок, переговоров, встреч, совещаний, съездов, конгрессов, "6" - для иных мероприятий.

Sheet Табл 10
A1: Сведения о недвижимом имуществе, используемом по договору безвозмездного пользования (договору ссуды)
O3: КОДЫ
A4: на 1 января 2025 г. | N4: Дата
N5: по Сводному реестру | O5: 86300402
N6: ИНН | O6: 1001112534
A7: Учреждение | B7: Муниципальное общеобразовательное учреждение "Средняя общеобразовательная школа № 44" | N7: КПП | O7: 102001001
A8: Орган, осуществляющий функции и полномочия учредителя | B8: Администрация Прионежского муниципального района | N8: глава по БК | O8: 015
A9: Публично-правовое образование | B9: Прионежский муниципальный район | N9: по ОКТМО | O9: 86636410
A10: Периодичность: годовая
A13: Наименование объекта | B13: Адрес | C13: Единица измерения | E13: Код строки | F13: Количество имущества | G13: Ссудодатель | J13: Срок пользования | L13: Фактические расходы на содержание объекта недвижимого имущества (руб/год) | M13: Направление использования объекта недвижимого имущества | O13: Обоснование заключения договора ссуды
C14: наименование | D14: код по ОКЕИ | G14: наименование | H14: ИНН | I14: код по КИСЭ | J14: начала | K14: окончания | M14: для осуществления основной деятельности <27> | N14: для осуществления иной деятельности <28>
A15: 1 | B15: 2 | C15: 3 | D15: 4 | E15: 5 | F15: 6 | G15: 7 | H15: 8 | I15: 9 | J15: 10 | K15: 11 | L15: 12 | M15: 13 | N15: 14 | O15: 15
A16: Площадные объекты <25>, всего | E16: 1000 | F16: 0 | G16: х | H16: х | I16: х | J16: х | K16: х | L16: 0 | M16: х | N16: х | O16: х
A17: в том числе: | E17: 1001
A19: Линейные объекты <26>, всего | E19: 2000 | F19: 0 | G19: х | H19: х | I19: х | J19: х | K19: х | L19: 0 | M19: х | N19: х | O19: х
A20: в том числе: | E20: 2001
A22: Резервуары, емкости, иные аналогичные объекты, всего | E22: 3000 | F22: 0 | G22: х | H22: х | I22: х | J22: х | K22: х | L22: 0 | M22: х | N22: х | O22: х
A23: в том числе: | E23: 3001
A25: Скважины, иные аналогичные объекты, всего | E25: 4000 | F25: 0 | G25: х | H25: х | I25: х | J25: х | K25: х | L25: 0 | M25: х | N25: х | O25: х
A26: в том числе: | E26: 4001
A28: Иные объекты, включая точечные, всего | E28: 5000 | F28: 0 | G28: х | H28: х | I28: х | J28: х | K28: х | L28: 0 | M28: х | N28: х | O28: х
A29: в том числе: | E29: 5001
D31: Всего: | E31: 9000 | F31: 0 | G31: х | H31: х | I31: х | J31: х | K31: х | L31: 0 | M31: х | N31: х | O31: х
A34: Руководитель | C34: Директор | M34: И.А.Сидорова
A35: (уполномоченное лицо) Учреждения
C36: (должность) | H36: (подпись) | M36: (расшифровка подписи)
A37: Исполнитель
C38: (должность) | H38: (фамилия, инициалы) | M38: (телефон)
A39: "__" __________ 20__ г.

Sheet Табл 11
A1: Сведения об особо ценном движимом имуществе (за исключением транспортных средств)
J3: КОДЫ
A4: на 1 января 2025 г. | I4: Дата
I5: по Сводному реестру | J5: 86300402
I6: ИНН | J6: 1001112534
A7: Учреждение | B7: Муниципальное общеобразовательное учреждение "Средняя общеобразовательная школа № 44" | I7: КПП | J7: 102001001
A8: Орган, осуществляющий функции и полномочия учредителя | B8: Администрация Прионежского муниципального района | I8: глава по БК | J8: 015
A9: Публично-правовое образование | B9: Прионежский муниципальный район | I9: по ОКТМО | J9: 86636410
A10: Периодичность: годовая
A12: Раздел 1. Сведения о наличии, состоянии и использовании особо ценного движимого имущества
A13: Наименование показателя (группа основных средств) | B13: Код строки | C13: Наличие движимого имущества на конец отчетного периода
C14: всего | D14: в том числе:
D15: используется учреждением | E15: передано в пользование | H15: не используется
E16: всего | F16: в том числе: | H16: требует ремонта | I16: физически и морально изношено, ожидает согласования, списания
F17: в аренду | G17: безвозмездно | I17: всего | J17: из них требует замены
A18: 1 | B18: 2 | C18: 3 | D18: 4 | E18: 5 | F18: 6 | G18: 7 | H18: 8 | I18: 9 | J18: 10
A19: Нежилые помещения, здания и сооружения, не отнесенные к недвижимому имуществу | B19: 1000 | C19: 0.00 | D19: 0.00 | E19: 0.00 | F19: 0.00 | G19: 0.00 | H19: 0.00 | I19: 0.00 | J19: 0.00
A20: в том числе: | B20: 1100
A21: для основной деятельности
A22: из них: | B22: 1110
A23: для оказания услуг (выполнения работ) в рамках утвержденного муниципального задания
A25: для иной деятельности | B25: 1200
A26: Машины и оборудование | B26: 2000 | C26: 0.00 | D26: 0.00 | E26: 0.00 | F26: 0.00 | G26: 0.00 | H26: 0.00 | I26: 0.00 | J26: 0.00
A27: в том числе: | B27: 2100
A28: для основной деятельности
A29: из них: | B29: 2110
A30: для оказания услуг (выполнения работ) в рамках утвержденного муниципального задания
A32: для иной деятельности | B32: 2200
A33: Хозяйственный и производственный инвентарь, всего | B33: 3000 | C33: 0.00 | D33: 0.00 | E33: 0.00 | F33: 0.00 | G33: 0.00 | H33: 0.00 | I33: 0.00 | J33: 0.00
A34: в том числе: | B34: 3100
A35: для основной деятельности
A36: из них: | B36: 3110
A37: для оказания услуг (выполнения работ) в рамках утвержденного муниципального задания
A39: для иной деятельности | B39: 3200
A40: Прочие основные средства, всего | B40: 4000 | C40: 0.00 | D40: 0.00 | E40: 0.00 | F40: 0.00 | G40: 0.00 | H40: 0.00 | I40: 0.00 | J40: 0.00
A41: в том числе: | B41: 4100
A42: для основной деятельности
A43: из них: | B43: 4110
A44: для оказания услуг (выполнения работ) в рамках утвержденного муниципального задания
A46: для иной деятельности | B46: 4200
A47: Итого | B47: 9000 | C47: 0.00 | D47: 0.00 | E47: 0.00 | F47: 0.00 | G47: 0.00 | H47: 0.00 | I47: 0.00 | J47: 0.00

Sheet Табл 11-1
A1: Наименование показателя (группа основных средств) | B1: Код строки | C1: Фактический срок использования <29>
C2: от 121 месяца и более | E2: от 85 до 120 месяцев | G2: от 61 до 84 месяцев | I2: от 37 до 60 месяцев | K2: от 13 до 36 месяцев | M2: менее 12 месяцев
C3: количество, ед | D3: балансовая стоимость, руб | E3: количество, ед | F3: балансовая стоимость, руб | G3: количество, ед | H3: балансовая стоимость, руб | I3: количество, ед | J3: балансовая стоимость, руб | K3: количество, ед | L3: балансовая стоимость, руб | M3: количество, ед | N3: балансовая стоимость, руб
A4: 1 | B4: 2 | C4: 11 | D4: 12 | E4: 13 | F4: 14 | G4: 15 | H4: 16 | I4: 17 | J4: 18 | K4: 19 | L4: 20 | M4: 21 | N4: 22
A5: Нежилые помещения, здания и сооружения, не отнесенные к недвижимому имуществу | B5: 1000 | C5: 0 | D5: 0.00 | E5: 0 | F5: 0.00 | G5: 0 | H5: 0.00 | I5: 0 | J5: 0.00 | K5: 0 | L5: 0.00 | M5: 0 | N5: 0.00
A6: в том числе: | B6: 1100
A7: для основной деятельности
A8: из них: | B8: 1110
A9: для оказания услуг (выполнения работ) в рамках утвержденного муниципального задания
A11: для иной деятельности | B11: 1200
A12: Машины и оборудование | B12: 2000 | C12: 0 | D12: 0.00 | E12: 0 | F12: 0.00 | G12: 0 | H12: 0.00 | I12: 0 | J12: 0.00 | K12: 0 | L12: 0.00 | M12: 0 | N12: 0.00
A13: в том числе: | B13: 2100
A14: для основной деятельности
A15: из них: | B15: 2110
A16: для оказания услуг (выполнения работ) в рамках утвержденного муниципального задания
A18: для иной деятельности | B18: 2200
A19: Хозяйственный и производственный инвентарь, всего | B19: 3000 | C19: 0 | D19: 0.00 | E19: 0 | F19: 0.00 | G19: 0 | H19: 0.00 | I19: 0 | J19: 0.00 | K19: 0 | L19: 0.00 | M19: 0 | N19: 0.00
A20: в том числе: | B20: 3100
A21: для основной деятельности
A22: из них: | B22: 3110
A23: для оказания услуг (выполнения работ) в рамках утвержденного муниципального задания
A25: для иной деятельности | B25: 3200
A26: Прочие основные средства, всего | B26: 4000 | C26: 0 | D26: 0.00 | E26: 0 | F26: 0.00 | G26: 0 | H26: 0.00 | I26: 0 | J26: 0.00 | K26: 0 | L26: 0.00 | M26: 0 | N26: 0.00
A27: в том числе: | B27: 4100
A28: для основной деятельности
A29: из них: | B29: 4110
A30: для оказания услуг (выполнения работ) в рамках утвержденного муниципального задания
A32: для иной деятельности | B32: 4200
A33: Итого | B33: 9000 | C33: 0 | D33: 0.00 | E33: 0 | F33: 0.00 | G33: 0 | H33: 0.00 | I33: 0 | J33: 0.00 | K33: 0 | L33: 0.00 | M33: 0 | N33: 0.00
A35: --------------------------------
A36: <29> Срок использования имущества считается начиная с 1-го числа месяца, следующего за месяцем принятия его к бухгалтерскому учету.

Sheet Табл 11-2
A1: Наименование показателя (группа основных средств) | B1: Код строки | C1: Остаточная стоимость объектов особо ценного движимого имущества, в том числе с оставшимся сроком полезного использования
C2: менее 12 месяцев | D2: от 12 до 24 месяцев | E2: от 25 до 36 месяцев | F2: от 37 до 48 месяцев | G2: от 49 до 60 месяцев | H2: от 61 до 72 месяцев | I2: от 73 до 84 месяцев | J2: от 85 до 96 месяцев | K2: от 97 до 108 месяцев | L2: от 109 до 120 месяцев | M2: от 121 месяца и более
A3: 1 | B3: 2 | C3: 23 | D3: 24 | E3: 25 | F3: 26 | G3: 27 | H3: 28 | I3: 29 | J3: 30 | K3: 31 | L3: 32 | M3: 33
A4: Нежилые помещения, здания и сооружения, не отнесенные к недвижимому имуществу | B4: 1000 | C4: 0.00 | D4: 0.00 | E4: 0.00 | F4: 0.00 | G4: 0.00 | H4: 0.00 | I4: 0.00 | J4: 0.00 | K4: 0.00 | L4: 0.00 | M4: 0.00
A5: в том числе: | B5: 1100
A6: для основной деятельности
A7: из них: | B7: 1110
A8: для оказания услуг (выполнения работ) в рамках утвержденного муниципального задания
A10: для иной деятельности | B10: 1200
A11: Машины и оборудование | B11: 2000 | C11: 0.00 | D11: 0.00 | E11: 0.00 | F11: 0.00 | G11: 0.00 | H11: 0.00 | I11: 0.00 | J11: 0.00 | K11: 0.00 | L11: 0.00 | M11: 0.00
A12: в том числе: | B12: 2100
A13: для основной деятельности
A14: из них: | B14: 2110
A15: для оказания услуг (выполнения работ) в рамках утвержденного муниципального задания
A17: для иной деятельности | B17: 2200
A18: Хозяйственный и производственный инвентарь | B18: 3000 | C18: 0.00 | D18: 0.00 | E18: 0.00 | F18: 0.00 | G18: 0.00 | H18: 0.00 | I18: 0.00 | J18: 0.00 | K18: 0.00 | L18: 0.00 | M18: 0.00
A19: в том числе: | B19: 3100
A20: для основной деятельности
A21: из них: | B21: 3110
A22: для оказания услуг (выполнения работ) в рамках утвержденного муниципального задания
A24: для иной деятельности | B24: 3200
A25: Прочие основные средства | B25: 4000 | C25: 0.00 | D25: 0.00 | E25: 0.00 | F25: 0.00 | G25: 0.00 | H25: 0.00 | I25: 0.00 | J25: 0.00 | K25: 0.00 | L25: 0.00 | M25: 0.00
A26: в том числе: | B26: 4100
A27: для основной деятельности
A28: из них: | B28: 4110
A29: для оказания услуг (выполнения работ) в рамках утвержденного муниципального задания
A31: для иной деятельности | B31: 4200
A32: Итого | B32: 9000 | C32: 0.00 | D32: 0.00 | E32: 0.00 | F32: 0.00 | G32: 0.00 | H32: 0.00 | I32: 0.00 | J32: 0.00 | K32: 0.00 | L32: 0.00 | M32: 0.00

Sheet Табл 11-3
A1: Раздел 2. Сведения о расходах на содержание особо ценного движимого имущества
A2: Наименование показателя | B2: Код строки | C2: Всего за отчетный период | D2: Расходы на содержание особо ценного движимого имущества
D3: в том числе:
D4: на текущее обслуживание | H4: капитальный ремонт, включая приобретение запасных частей | I4: на уплату налогов | J4: заработная плата обслуживающего персонала | K4: иные расходы
D5: расходы на периодическое техническое (профилактическое) обслуживание | E5: расходы на текущий ремонт, включая приобретение запасных частей | F5: расходы на обязательное страхование | G5: расходы на добровольное страхование
A6: 1 | B6: 2 | C6: 3 | D6: 4 | E6: 5 | F6: 6 | G6: 7 | H6: 8 | I6: 9 | J6: 10 | K6: 11
A7: Нежилые помещения, здания и сооружения, не отнесенные к недвижимому имуществу | B7: 1000 | C7: 0.00 | D7: 0.00 | E7: 0.00 | F7: 0.00 | G7: 0.00 | H7: 0.00 | I7: 0.00 | J7: 0.00 | K7: 0.00
A8: в том числе: | B8: 1100
A9: для основной деятельности
A10: из них: | B10: 1110
A11: для оказания услуг (выполнения работ) в рамках утвержденного муниципального задания
A13: для иной деятельности | B13: 1200
A14: Машины и оборудование | B14: 2000 | C14: 0.00 | D14: 0.00 | E14: 0.00 | F14: 0.00 | G14: 0.00 | H14: 0.00 | I14: 0.00 | J14: 0.00 | K14: 0.00
A15: в том числе: | B15: 2100
A16: для основной деятельности
A17: из них: | B17: 2110
A18: для оказания услуг (выполнения работ) в рамках утвержденного муниципального задания
A20: для иной деятельности | B20: 2200
A21: Хозяйственный и производственный инвентарь | B21: 3000 | C21: 0.00 | D21: 0.00 | E21: 0.00 | F21: 0.00 | G21: 0.00 | H21: 0.00 | I21: 0.00 | J21: 0.00 | K21: 0.00
A22: в том числе: | B22: 3100
A23: для основной деятельности
A24: из них: | B24: 3110
A25: для оказания услуг (выполнения работ) в рамках утвержденного муниципального задания
A27: для иной деятельности | B27: 3200
A28: Прочие основные средства | B28: 4000 | C28: 0.00 | D28: 0.00 | E28: 0.00 | F28: 0.00 | G28: 0.00 | H28: 0.00 | I28: 0.00 | J28: 0.00 | K28: 0.00
A29: в том числе: | B29: 4100
A30: для основной деятельности
A31: из них: | B31: 4110
A32: для оказания услуг (выполнения работ) в рамках утвержденного муниципального задания
A34: для иной деятельности | B34: 4200
A35: Итого | B35: 9000 | C35: 0.00 | D35: 0.00 | E35: 0.00 | F35: 0.00 | G35: 0.00 | H35: 0.00 | I35: 0.00 | J35: 0.00 | K35: 0.00
A37: Руководитель | B37: Директор | H37: И.А.Сидорова
A38: (уполномоченное лицо) Учреждения
B39: (должность) | E39: (подпись) | H39: (расшифровка подписи)
A40: Исполнитель
B41: (должность) | E41: (фамилия, инициалы) | H41: (телефон)
A42: "__" __________ 20__ г.

Sheet Табл 12
A1: Сведения о транспортных средствах
J3: КОДЫ
A4: на 1 января 2025 г. | I4: Дата
I5: по Сводному реестру | J5: 86300402
I6: ИНН | J6: 1001112534
A7: Учреждение | B7: Муниципальное общеобразовательное учреждение "Средняя общеобразовательная школа № 44" | I7: КПП | J7: 102001001
A8: Орган, осуществляющий функции и полномочия учредителя | B8: Администрация Прионежского муниципального района | I8: глава по БК | J8: 015
A9: Публично-правовое образование | B9: Прионежский муниципальный район | I9: по ОКТМО | J9: 86636410
A10: Периодичность: годовая
A12: Раздел 1. Сведения об используемых транспортных средствах
A13: Наименование показателя | B13: Код строки | C13: Транспортные средства, ед
C14: всего | E14: в том числе:
E15: в оперативном управлении учреждения | G15: по договорам аренды | I15: по договорам безвозмездного пользования
C16: на отчетную дату | D16: в среднем за год | E16: на отчетную дату | F16: в среднем за год | G16: на отчетную дату | H16: в среднем за год | I16: на отчетную дату | J16: в среднем за год
A17: 1 | B17: 2 | C17: 3 | D17: 4 | E17: 5 | F17: 6 | G17: 7 | H17: 8 | I17: 9 | J17: 10
A18: Наземные транспортные средства | B18: 1000 | C18: =C32 -> 0 | D18: =D32 -> 0 | E18: 0 | F18: 0 | G18: 0 | H18: 0 | I18: 0 | J18: 0
A19: автомобили легковые (за исключением автомобилей скорой медицинской помощи), всего | B19: 1100
A20: в том числе: <30> | B20: 1101
A21: средней стоимостью менее 3 миллионов рублей, с года выпуска которых прошло не более 3 лет
A22: средней стоимостью менее 3 миллионов рублей, с года выпуска которых прошло более 3 лет | B22: 1102
A23: средней стоимостью от 3 миллионов до 5 миллионов рублей включительно, с года выпуска которых прошло не более 3 лет | B23: 1103
A24: средней стоимостью от 3 миллионов до 5 миллионов рублей включительно, с года выпуска которых прошло более 3 лет | B24: 1104
A25: средней стоимостью от 5 миллионов до 10 миллионов рублей включительно, с года выпуска которых прошло не более 3 лет | B25: 1105
A26: средней стоимостью от 5 миллионов до 10 миллионов рублей включительно, с года выпуска которых прошло более 3 лет | B26: 1106
A27: средней стоимостью от 10 миллионов до 15 миллионов рублей включительно | B27: 1107
A28: средней стоимостью от 15 миллионов рублей | B28: 1108
A29: автомобили скорой медицинской помощи | B29: 1200
A30: автомобили грузовые, за исключением специальных | B30: 1300
A31: специальные грузовые автомашины (молоковозы, скотовозы, специальные машины для перевозки птицы, машины для перевозки минеральных удобрений, ветеринарной помощи, технического обслуживания) | B31: 1400
A32: автобусы | B32: 1500 | C32: 0 | D32: 0 | E32: 0 | F32: 0 | G32: 0 | H32: 0 | I32: 0 | J32: 0
A33: тракторы самоходные комбайны | B33: 1600
A34: мотосани, снегоходы | B34: 1700
A35: прочие самоходные машины и механизмы на пневматическом и гусеничном ходу | B35: 1800
A36: мотоциклы, мотороллеры | B36: 1900
A37: Воздушные судна | B37: 2000 | C37: х | D37: х | E37: х | F37: х | G37: х | H37: х | I37: х | J37: х
A38: самолеты, всего | B38: 2100
A39: в том числе: <30> | B39: 2101
A40: самолеты пассажирские
A41: самолеты грузовые | B41: 2102
A42: самолеты пожарные | B42: 2103
A43: самолеты аварийно-технической службы | B43: 2104
A44: другие самолеты | B44: 2105
A45: вертолеты, всего | B45: 2200
A46: в том числе: <30> | B46: 2201
A47: вертолеты пассажирские
A48: вертолеты грузовые | B48: 2202
A49: вертолеты пожарные | B49: 2203
A50: вертолеты аварийно-технической службы | B50: 2204
A51: другие вертолеты | B51: 2205
A52: воздушные транспортные средства, не имеющие | B52: 2206
A53: Водные транспортные средства | B53: 3000 | C53: х | D53: х | E53: х | F53: х | G53: х | H53: х | I53: х | J53: х
A54: суда пассажирские морские и речные | B54: 3100
A55: суда грузовые морские и речные самоходные | B55: 3200
A56: яхты | B56: 3300
A57: катера | B57: 3400
A58: гидроциклы | B58: 3500
A59: моторные лодки | B59: 3600
A60: парусно-моторные суда | B60: 3700
A61: другие водные транспортные средства самоходные | B61: 3800
A62: несамоходные (буксируемые) суда и иные транспортные средства (водные транспортные средства, не имеющие двигателей) | B62: 3900
A63: Итого | B63: 9000 | C63: =C18 -> 0 | D63: =D18 -> 0 | E63: 0 | F63: 0 | G63: 0 | H63: 0 | I63: 0 | J63: 0
A65: --------------------------------
A66: <30> Показатели формируются в случае, если требование о детализации установлено органом, осуществляющим функции и полномочия учредителя.

Sheet Табл 12-1
A1: Раздел 2. Сведения о неиспользуемых транспортных средствах, находящихся в оперативном управлении учреждения
A2: Наименование показателя | B2: Код строки | C2: Передано во временное пользование сторонним организациям (индивидуальным предпринимателям) | G2: Не используется
C3: всего | D3: в том числе: | G3: всего | H3: в том числе:
D4: на основании договоров аренды | E4: на основании договоров безвозмездного пользования | F4: без оформления права пользования | H4: проводится капитальный ремонт и/или реконструкция | I4: в связи с аварийным состоянием (требуется ремонт) | J4: в связи с аварийным состоянием (подлежит списанию) <31> | K4: излишнее имущество (подлежит передаче в казну РФ)
A5: 1 | B5: 2 | C5: 3 | D5: 4 | E5: 5 | F5: 6 | G5: 7 | H5: 8 | I5: 9 | J5: 10 | K5: 11
A6: Наземные транспортные средства | B6: 1000 | C6: х | D6: х | E6: х | F6: х | G6: х | H6: х | I6: х | J6: х | K6: х
A7: автомобили легковые (за исключением автомобилей скорой медицинской помощи), всего | B7: 1100
A8: в том числе: <30> | B8: 1101
A9: средней стоимостью менее 3 миллионов рублей, с года выпуска которых прошло не более 3 лет
A10: средней стоимостью менее 3 миллионов рублей, с года выпуска которых прошло более 3 лет | B10: 1102
A11: средней стоимостью от 3 миллионов до 5 миллионов рублей включительно, с года выпуска которых прошло не более 3 лет; | B11: 1103
A12: средней стоимостью от 3 миллионов до 5 миллионов рублей включительно, с года выпуска которых прошло более 3 лет | B12: 1104
A13: средней стоимостью от 5 миллионов до 10 миллионов рублей включительно, с года выпуска которых прошло не более 3 лет | B13: 1105
A14: средней стоимостью от 5 миллионов до 10 миллионов рублей включительно, с года выпуска которых прошло более 3 лет | B14: 1106
A15: средней стоимостью от 10 миллионов до 15 миллионов рублей включительно | B15: 1107
A16: средней стоимостью от 15 миллионов рублей | B16: 1108
A17: автомобили скорой медицинской помощи | B17: 1200
A18: автомобили грузовые, за исключением специальных | B18: 1300
A19: специальные грузовые автомашины (молоковозы, скотовозы, специальные машины для перевозки птицы, машины для перевозки минеральных удобрений, ветеринарной помощи, технического обслуживания) | B19: 1400
A20: автобусы | B20: 1500
A21: тракторы самоходные комбайны | B21: 1600
A22: мотосани, снегоходы | B22: 1700
A23: прочие самоходные машины и механизмы на пневматическом и гусеничном ходу | B23: 1800
A24: мотоциклы, мотороллеры | B24: 1900
A25: Воздушные судна | B25: 2000 | C25: х | D25: х | E25: х | F25: х | G25: х | H25: х | I25: х | J25: х | K25: х
A26: самолеты, всего | B26: 2100
A27: в том числе: <30> | B27: 2101
A28: самолеты пассажирские
A29: самолеты грузовые | B29: 2102
A30: самолеты пожарные | B30: 2103
A31: самолеты аварийно-технической службы | B31: 2104
A32: другие самолеты | B32: 2105
A33: вертолеты, всего | B33: 2200
A34: в том числе: <30> | B34: 2201
A35: вертолеты пассажирские
A36: вертолеты грузовые | B36: 2202
A37: вертолеты пожарные | B37: 2203
A38: вертолеты аварийно-технической службы | B38: 2204
A39: другие вертолеты | B39: 2205
A40: воздушные транспортные средства, не имеющие двигателей | B40: 2206
A41: Водные транспортные средства | B41: 3000 | C41: х | D41: х | E41: х | F41: х | G41: х | H41: х | I41: х | J41: х | K41: х
A42: суда пассажирские морские и речные | B42: 3100
A43: суда грузовые морские и речные самоходные | B43: 3200
A44: яхты | B44: 3300
A45: катера | B45: 3400
A46: гидроциклы | B46: 3500
A47: моторные лодки | B47: 3600
A48: парусно-моторные суда | B48: 3700
A49: другие водные транспортные средства самоходные | B49: 3800
A50: несамоходные (буксируемые) суда и иные транспортные средства (водные транспортные средства, не имеющие двигателей) | B50: 3900
A51: Итого | B51: 9000 | C51: х | D51: х | E51: х | F51: х | G51: х | H51: х | I51: х | J51: х | K51: х
A53: --------------------------------
A54: <31> Указываются транспортные средства, в отношении которых принято решение о списании, ожидается согласование органом, осуществляющим функции и полномочия учредителя.

Sheet Табл 12-2
A1: Раздел 3. Направления использования транспортных средств
A2: Наименование показателя | B2: Код строки | C2: Транспортные средства, непосредственно используемые в целях оказания услуг, выполнения работ | K2: Транспортные средства, используемые в общехозяйственных целях
K3: в целях обслуживания административно-управленческого персонала | S3: в иных целях <32>
C4: всего | E4: в том числе: | K4: всего | M4: в том числе: | S4: всего | U4: в том числе:
E5: в оперативном управлении учреждения, ед. | G5: по договорам аренды, ед. | I5: по договорам безвозмездного пользования, ед. | M5: в оперативном управлении учреждения, ед. | O5: по договорам аренды, ед. | Q5: по договорам безвозмездного пользования, ед. | U5: в оперативном управлении учреждения, ед. | W5: по договорам аренды, ед. | Y5: по договорам безвозмездного пользования, ед.
C6: на отчетную дату | D6: в среднем за год | E6: на отчетную дату | F6: в среднем за год | G6: на отчетную дату | H6: в среднем за год | I6: на отчетную дату | J6: в среднем за год | K6: на отчетную дату | L6: в среднем за год | M6: на отчетную дату | N6: в среднем за год | O6: на отчетную дату | P6: в среднем за год | Q6: на отчетную дату | R6: в среднем за год | S6: на отчетную дату | T6: в среднем за год | U6: на отчетную дату | V6: в среднем за год | W6: на отчетную дату | X6: в среднем за год | Y6: на отчетную дату | Z6: в среднем за год
A7: 1 | B7: 2 | C7: 3 | D7: 4 | E7: 5 | F7: 6 | G7: 7 | H7: 8 | I7: 9 | J7: 10 | K7: 11 | L7: 12 | M7: 13 | N7: 14 | O7: 15 | P7: 16 | Q7: 17 | R7: 18 | S7: 19 | T7: 20 | U7: 21 | V7: 22 | W7: 23 | X7: 24 | Y7: 25 | Z7: 26
A8: Наземные транспортные средства | B8: 1000 | C8: =C22 -> 0 | D8: =D22 -> 0 | E8: 0 | F8: 0 | G8: 0 | H8: 0 | I8: 0 | J8: 0 | K8: 0 | L8: 0 | M8: 0 | N8: 0 | O8: 0 | P8: 0 | Q8: 0 | R8: 0 | S8: 0 | T8: 0 | U8: 0 | V8: 0 | W8: 0 | X8: 0 | Y8: 0 | Z8: 0
A9: автомобили легковые (за исключением автомобилей скорой медицинской помощи), всего | B9: 1100
A10: в том числе: <30> | B10: 1101
A11: средней стоимостью менее 3 миллионов рублей, с года выпуска которых прошло не более 3 лет
A12: средней стоимостью менее 3 миллионов рублей, с года выпуска которых прошло более 3 лет | B12: 1102
A13: средней стоимостью от 3 миллионов до 5 миллионов рублей включительно, с года выпуска которых прошло не более 3 лет | B13: 1103
A14: средней стоимостью от 3 миллионов до 5 миллионов рублей включительно, с года выпуска которых прошло более 3 лет | B14: 1104
A15: средней стоимостью от 5 миллионов до 10 миллионов рублей включительно, с года выпуска которых прошло не более 3 лет | B15: 1105
A16: средней стоимостью от 5 миллионов до 10 миллионов рублей включительно, с года выпуска которых прошло более 3 лет | B16: 1106
A17: средней стоимостью от 10 миллионов до 15 миллионов рублей включительно | B17: 1107
A18: средней стоимостью от 15 миллионов рублей | B18: 1108
A19: автомобили скорой медицинской помощи | B19: 1200
A20: автомобили грузовые, за исключением специальных | B20: 1300
A21: специальные грузовые автомашины (молоковозы, скотовозы, специальные машины для перевозки птицы, машины для перевозки минеральных удобрений, ветеринарной помощи, технического обслуживания) | B21: 1400
A22: автобусы | B22: 1500 | C22: 0 | D22: 0 | E22: 0 | F22: 0 | G22: 0 | H22: 0 | I22: 0 | J22: 0 | K22: 0 | L22: 0 | M22: 0 | N22: 0 | O22: 0 | P22: 0 | Q22: 0 | R22: 0 | S22: 0 | T22: 0 | U22: 0 | V22: 0 | W22: 0 | X22: 0 | Y22: 0 | Z22: 0
A23: тракторы самоходные, комбайны | B23: 1600
A24: мотосани, снегоходы | B24: 1700
A25: прочие самоходные машины и механизмы на пневматическом и гусеничном ходу | B25: 1800
A26: мотоциклы, мотороллеры | B26: 1900
A27: Воздушные судна | B27: 2000 | C27: х | D27: х | E27: х | F27: х | G27: х | H27: х | I27: х | J27: х | K27: х | L27: х | M27: х | N27: х | O27: х | P27: х | Q27: х | R27: х | S27: х | T27: х | U27: х | V27: х | W27: х | X27: х | Y27: х | Z27: х
A28: самолеты, всего | B28: 2100
A29: в том числе: <30> | B29: 2101
A30: самолеты пассажирские
A31: самолеты грузовые | B31: 2102
A32: самолеты пожарные | B32: 2103
A33: самолеты аварийно-технической службы | B33: 2104
A34: другие самолеты | B34: 2105
A35: вертолеты, всего | B35: 2200
A36: в том числе: <30> | B36: 2201
A37: вертолеты пассажирские
A38: вертолеты грузовые | B38: 2202
A39: вертолеты пожарные | B39: 2203
A40: вертолеты аварийно-технической службы | B40: 2204
A41: другие вертолеты | B41: 2205
A42: воздушные транспортные средства, не имеющие двигателей | B42: 2206
A43: Водные транспортные средства | B43: 3000 | C43: х | D43: х | E43: х | F43: х | G43: х | H43: х | I43: х | J43: х | K43: х | L43: х | M43: х | N43: х | O43: х | P43: х | Q43: х | R43: х | S43: х | T43: х | U43: х | V43: х | W43: х | X43: х | Y43: х | Z43: х
A44: суда пассажирские морские и речные | B44: 3100
A45: суда грузовые морские и речные самоходные | B45: 3200
A46: яхты | B46: 3300
A47: катера | B47: 3400
A48: гидроциклы | B48: 3500
A49: моторные лодки | B49: 3600
A50: парусно-моторные суда | B50: 3700
A51: другие водные транспортные средства самоходные | B51: 3800
A52: несамоходные (буксируемые) суда и иные транспортные средства (водные транспортные средства, не имеющие двигателей) | B52: 3900
A53: Итого | B53: 9000 | C53: =C8 -> 0 | D53: =D8 -> 0 | E53: 0 | F53: 0 | G53: 0 | H53: 0 | I53: 0 | J53: 0 | K53: 0 | L53: 0 | M53: 0 | N53: 0 | O53: 0 | P53: 0 | Q53: 0 | R53: 0 | S53: 0 | T53: 0 | U53: 0 | V53: 0 | W53: 0 | X53: 0 | Y53: 0 | Z53: 0
A55: --------------------------------
A56: <32> Указываются транспортные средства, используемые в целях уборки территории, вывоза мусора, перевозки имущества (грузов), а также в целях перевозки людей.

Sheet Табл 12-3
A1: Раздел 4. Сведения о расходах на содержание транспортных средств
A2: Наименование показателя | B2: Код строки | C2: Расходы на содержание транспортных средств
C3: всего за отчетный период | D3: в том числе:
D4: на обслуживание транспортных средств | J4: содержание гаражей | L4: заработная плата обслуживающего персонала | O4: уплата транспортного налога
D5: расходы на горюче-смазочные материалы | E5: приобретение (замена) колес, шин, дисков | F5: расходы на ОСАГО | G5: расходы на добровольное страхование | H5: ремонт, включая приобретение запасных частей | I5: техобслуживание сторонними организациями | J5: аренда гаражей, парковочных мест | K5: содержание гаражей | L5: водителей | M5: обслуживающего персонала гаражей | N5: административного персонала гаражей
A6: 1 | B6: 2 | C6: 3 | D6: 4 | E6: 5 | F6: 6 | G6: 7 | H6: 8 | I6: 9 | J6: 10 | K6: 11 | L6: 12 | M6: 13 | N6: 14 | O6: 15
A7: Наземные транспортные средства | B7: 1000 | C7: х | D7: х | E7: х | F7: х | G7: х | H7: х | I7: х | J7: х | K7: х | L7: х | M7: х | N7: х | O7: х
A8: автомобили легковые (за исключением автомобилей скорой медицинской помощи), всего | B8: 1100
A9: в том числе: <30> | B9: 1101
A10: средней стоимостью менее 3 миллионов рублей, с года
A11: выпуска которых прошло не более 3 лет
A12: средней стоимостью менее 3 миллионов рублей, с года выпуска которых прошло более 3 лет | B12: 1102
A13: средней стоимостью от 3 миллионов до 5 миллионов рублей включительно, с года выпуска которых прошло не более 3 лет; | B13: 1103
A14: средней стоимостью от 3 миллионов до 5 миллионов рублей включительно, с года выпуска которых прошло более 3 лет | B14: 1104
A15: средней стоимостью от 5 миллионов до 10 миллионов рублей включительно, с года выпуска которых прошло не более 3 лет | B15: 1105
A16: средней стоимостью от 5 миллионов до 10 миллионов рублей включительно, с года выпуска которых прошло более 3 лет | B16: 1106
A17: средней стоимостью от 10 миллионов до 15 миллионов рублей включительно | B17: 1107
A18: средней стоимостью от 15 миллионов рублей | B18: 1108
A19: автомобили скорой медицинской помощи | B19: 1200
A20: автомобили грузовые, за исключением специальных | B20: 1300
A21: специальные грузовые автомашины (молоковозы, скотовозы, специальные машины для перевозки птицы, машины для перевозки минеральных удобрений, ветеринарной помощи, технического обслуживания) | B21: 1400
A22: автобусы | B22: 1500
A23: тракторы самоходные комбайны | B23: 1600
A24: мотосани, снегоходы | B24: 1700
A25: прочие самоходные машины и механизмы на пневматическом и гусеничном ходу | B25: 1800
A26: мотоциклы, мотороллеры | B26: 1900
A27: Воздушные судна | B27: 2000 | C27: х | D27: х | E27: х | F27: х | G27: х | H27: х | I27: х | J27: х | K27: х | L27: х | M27: х | N27: х | O27: х
A28: самолеты, всего | B28: 2100
A29: в том числе: <30> | B29: 2101
A30: самолеты пассажирские
A31: самолеты грузовые | B31: 2102
A32: самолеты пожарные | B32: 2103
A33: самолеты аварийно-технической службы | B33: 2104
A34: другие самолеты | B34: 2105
A35: вертолеты, всего | B35: 2200
A36: в том числе: <30> | B36: 2201
A37: вертолеты пассажирские
A38: вертолеты грузовые | B38: 2202
A39: вертолеты пожарные | B39: 2203
A40: вертолеты аварийно-технической службы | B40: 2204
A41: другие вертолеты | B41: 2205
A42: воздушные транспортные средства, не имеющие двигателей | B42: 2206
A43: Водные транспортные средства | B43: 3000 | C43: х | D43: х | E43: х | F43: х | G43: х | H43: х | I43: х | J43: х | K43: х | L43: х | M43: х | N43: х | O43: х
A44: суда пассажирские морские и речные | B44: 3100
A45: суда грузовые морские и речные самоходные | B45: 3200
A46: яхты | B46: 3300
A47: катера | B47: 3400
A48: гидроциклы | B48: 3500
A49: моторные лодки | B49: 3600
A50: парусно-моторные суда | B50: 3700
A51: другие водные транспортные средства самоходные | B51: 3800
A52: несамоходные (буксируемые) суда и иные транспортные средства (водные транспортные средства, не имеющие двигателей) | B52: 3900
A53: Итого | B53: 9000 | C53: х | D53: х | E53: х | F53: х | G53: х | H53: х | I53: х | J53: х | K53: х | L53: х | M53: х | N53: х | O53: х
A55: Руководитель | B55: Директор | K55: И.А.Сидорова
A56: (уполномоченное лицо) Учреждения
B57: (должность) | G57: (подпись) | K57: (расшифровка подписи)
A58: Исполнитель
B59: (должность) | G59: (фамилия, инициалы) | K59: (телефон)
A60: "__" __________ 20__ г.
